fUSD/lending_fUSD_20251223
["ID","MTS","AMOUNT","RATE_DAILY","PERIOD"]
[399599211,1766530232778,-888.0,0.00015583,2]
[399599212,1766530232788,-150.0,0.00015583,2]
[399599213,1766530232798,-150.0,0.00015591,2]
[399599214,1766530232808,-150.0,0.00015593,2]
[399599215,1766530232817,-150.0,0.00015606,2]
[399599216,1766530232826,-150.0,0.00015627,2]
[399599217,1766530232836,-150.0,0.00015636,2]
[399599218,1766530232846,-150.0,0.00015642,2]
[399599219,1766530232855,-150.0,0.00015642,2]
[399599220,1766530232866,-150.0,0.00015652,2]
[399599221,1766530232876,-150.0,0.00015657,2]
[399599222,1766530232885,-150.0,0.00015677,2]
[399599223,1766530232895,-150.0,0.0001568,2]
[399599224,1766530232905,-541.44,0.00015712,2]
[399599225,1766530232915,-150.0,0.00015712,2]
[399599226,1766530232924,-150.0,0.00015712,2]
[399599227,1766530232934,-150.0,0.00015712,2]
[399599228,1766530232943,-150.0,0.00015712,2]
[399599229,1766530232953,-150.0,0.00015712,2]
[399599230,1766530232963,-150.0,0.00015723,2]
[399599231,1766530232972,-500.0,0.00015731,2]
[399599232,1766530232982,-150.0,0.00015731,2]
[399599233,1766530232992,-150.0,0.00015748,2]
[399599234,1766530233002,-240.86,0.00015763,2]
[399599235,1766530233011,-150.0,0.00015767,2]
[399599236,1766530233021,-150.0,0.00015773,2]
[399599237,1766530233030,-150.0,0.00015773,2]
[399599238,1766530233040,-166.66,0.00015779,2]
[399599239,1766530233050,-150.0,0.00015783,2]
[399599240,1766530233059,-150.0,0.00015783,2]
[399599241,1766530233070,-150.0,0.00015805,2]
[399599242,1766530233082,-150.0,0.0001581,2]
[399599243,1766530233091,-150.0,0.00015818,2]
[399599244,1766530233102,-150.0,0.00015834,2]
[399599245,1766530233112,-150.0,0.00015854,2]
[399599246,1766530233123,-150.0,0.00015854,2]
[399599247,1766530233133,-150.0,0.00015854,2]
[399599248,1766530233142,-150.0,0.00015878,2]
[399599249,1766530233153,-151.0,0.0001588,2]
[399599250,1766530233163,-151.0,0.0001588,2]
[399599251,1766530233172,-151.0,0.00015881,2]
[399599252,1766530233183,-151.0,0.00015882,2]
[399599253,1766530233193,-1668.72,0.00015885,2]
[399599254,1766530233203,-150.0,0.00015889,2]
[399599255,1766530233213,-150.0,0.00015894,2]
[399599256,1766530233223,-150.0,0.00015897,2]
[399599257,1766530233233,-150.0,0.00015925,2]
[399599258,1766530233242,-150.0,0.00015925,2]
[399599259,1766530233252,-150.0,0.00015925,2]
[399599260,1766530233262,-150.0,0.00015925,2]
[399599261,1766530233271,-150.0,0.00015941,2]
[399599262,1766530233281,-150.0,0.00015952,2]
[399599263,1766530233291,-150.0,0.00015955,2]
[399599264,1766530233301,-150.0,0.0001596,2]
[399599265,1766530233312,-150.0,0.00015967,2]
[399599266,1766530233322,-150.0,0.00015985,2]
[399599267,1766530233331,-541.44,0.00015986,2]
[399599268,1766530233341,-150.0,0.00015995,2]
[399599269,1766530233351,-150.0,0.00015995,2]
[399599270,1766530233361,-500.0,0.00016005,2]
[399599271,1766530233371,-150.0,0.00016016,2]
[399599272,1766530233380,-150.0,0.00016016,2]
[399599273,1766530233391,-150.0,0.00016026,2]
[399599274,1766530233400,-150.0,0.00016028,2]
[399599275,1766530233412,-150.0,0.00016031,2]
[399599276,1766530233422,-150.0,0.00016066,2]
[399599277,1766530233432,-150.0,0.00016066,2]
[399599278,1766530233442,-150.0,0.00016072,2]
[399599279,1766530233452,-150.0,0.00016076,2]
[399599280,1766530233462,-166.66,0.00016098,2]
[399599281,1766530233472,-150.0,0.000161,2]
[399599282,1766530233482,-150.0,0.00016102,2]
[399599283,1766530233492,-150.0,0.00016115,2]
[399599284,1766530233502,-200.0,0.00016127,2]
[399599285,1766530233513,-150.0,0.00016137,2]
[399599286,1766530233523,-150.0,0.00016137,2]
[399599287,1766530233532,-150.0,0.00016137,2]
[399599288,1766530233543,-150.0,0.00016137,2]
[399599289,1766530233554,-150.0,0.00016137,2]
[399599290,1766530233564,-150.0,0.00016159,2]
[399599291,1766530233574,-150.0,0.00016172,2]
[399599292,1766530233584,-150.0,0.00016174,2]
[399599293,1766530233594,-150.0,0.00016198,2]
[399599294,1766530233603,-150.0,0.00016202,2]
[399599295,1766530233613,-150.0,0.00016208,2]
[399599296,1766530233623,-150.0,0.00016208,2]
[399599297,1766530233633,-150.0,0.00016243,2]
[399599298,1766530233643,-150.0,0.00016246,2]
[399599299,1766530233653,-150.0,0.00016248,2]
[399599300,1766530233663,-150.0,0.00016258,2]
[399599301,1766530233673,-150.0,0.00016258,2]
[399599302,1766530233683,-541.44,0.0001626,2]
[399599303,1766530233692,-366.6196746,0.00016276,2]
[399599304,1766530233702,-150.0,0.00016279,2]
[399599305,1766530233711,-150.0,0.00016279,2]
[399599306,1766530233721,-500.0,0.00016279,2]
[399599307,1766530233730,-150.0,0.00016289,2]
[399599308,1766530233740,-150.0,0.00016307,2]
[399599309,1766530233750,-150.0,0.00016314,2]
[399599310,1766530233759,-150.0,0.00016319,2]
[399599311,1766530233769,-150.0,0.00016322,2]
[399599312,1766530233778,-150.0,0.00016333,2]
[399599313,1766530233788,-366.61967458,0.00016345,2]
[399599314,1766530233798,-150.0,0.00016349,2]
[399599315,1766530233807,-150.0,0.00016349,2]
[399599316,1766530233817,-150.0,0.00016349,2]
[399599317,1766530233827,-150.0,0.00016349,2]
[399599318,1766530233837,-1600.0,0.0001636,2]
[399599319,1766530233846,-23611.47808639,0.0001636,2]
[399599320,1766530233883,-346.84803172,0.0001636,2]
[399599321,1766530233895,-1059.11,0.0001636,2]
[399599322,1766530233907,-1055.51,0.0001636,2]
[399599323,1766530233918,-14434.23077426,0.0001636,2]
[399599324,1766530233930,-661.42405583,0.0001636,2]
[399599325,1766530233942,-2740.89999996,0.0001636,2]
[399599326,1766530233953,-480.71,0.0001636,2]
[399599327,1766530233964,-1060.77904205,0.0001636,2]
[399599328,1766530234000,-6285.10522264,0.0001636,2]
[399599329,1766530234012,-883.47283394,0.0001636,2]
[399599330,1766530237993,-297868.65195321,0.0001636,2]
[399599331,1766530238003,-150.0,0.00016377,2]
[399599332,1766530238014,-150.0,0.0001638,2]
[399599333,1766530238024,-150.0,0.00016385,2]
[399599334,1766530238035,-150.0,0.00016395,2]
[399599335,1766530238046,-220.86,0.000164,2]
[399599336,1766530238056,-366.61967458,0.00016415,2]
[399599337,1766530238067,-1852.42,0.00016415,2]
[399599338,1766530238079,-166.66,0.00016417,2]
[399599339,1766530238093,-150.0,0.0001642,2]
[399599340,1766530238103,-150.0,0.0001642,2]
[399599341,1766530238113,-150.0,0.0001642,2]
[399599342,1766530238125,-500.0,0.00016438,2]
[399599343,1766530238135,-800.0,0.00016438,2]
[399599344,1766530238145,-150.0,0.0001644,2]
[399599345,1766530238156,-150.0,0.00016455,2]
[399599346,1766530238167,-150.0,0.00016464,2]
[399599347,1766530238177,-150.0,0.00016469,2]
[399599348,1766530238188,-366.61967458,0.00016484,2]
[399599349,1766530238198,-150.0,0.00016491,2]
[399599350,1766530238207,-150.0,0.00016491,2]
[399599351,1766530238218,-150.0,0.00016501,2]
[399599352,1766530238233,-150.0,0.00016501,2]
[399599353,1766530238244,-150.0,0.00016507,2]
[399599354,1766530238254,-150.0,0.00016526,2]
[399599355,1766530238264,-541.44,0.00016534,2]
[399599356,1766530238274,-150.0,0.00016543,2]
[399599357,1766530238284,-150.0,0.00016551,2]
[399599358,1766530238294,-500.0,0.00016553,2]
[399599359,1766530238305,-366.61967458,0.00016553,2]
[399599360,1766530238315,-150.0,0.00016562,2]
[399599361,1766530238326,-150.0,0.00016562,2]
[399599362,1766530238336,-150.0,0.00016562,2]
[399599363,1766530238347,-150.0,0.00016562,2]
[399599364,1766530238357,-150.0,0.00016562,2]
[399599365,1766530238368,-150.0,0.00016594,2]
[399599366,1766530238379,-150.0,0.00016597,2]
[399599367,1766530238390,-150.0,0.00016617,2]
[399599368,1766530238401,-150.0,0.00016622,2]
[399599369,1766530238411,-366.61967458,0.00016623,2]
[399599370,1766530238421,-150.0,0.00016626,2]
[399599371,1766530238432,-200.62726993,0.00016626,2]
[399599372,1766530238443,-3205.9386,0.0001663,2]
[399599373,1766530238453,-150.0,0.00016632,2]
[399599374,1766530238464,-150.0,0.00016632,2]
[399599375,1766530238475,-150.0,0.00016638,2]
[399599376,1766530238485,-150.0,0.00016647,2]
[399599377,1766530238495,-150.0,0.00016653,2]
[399599378,1766530238506,-150.0,0.00016668,2]
[399599379,1766530238517,-200.0,0.00016681,2]
[399599380,1766530238528,-150.0,0.00016681,2]
[399599381,1766530238538,-150.0,0.00016683,2]
[399599382,1766530238549,-150.0,0.00016691,2]
[399599383,1766530238560,-366.61967458,0.00016692,2]
[399599384,1766530238572,-150.0,0.00016703,2]
[399599385,1766530238583,-150.0,0.00016703,2]
[399599386,1766530238598,-150.0,0.00016725,2]
[399599387,1766530238609,-500.0,0.00016725,2]
[399599388,1766530238620,-500.0,0.00016725,2]
[399599389,1766530238630,-150.0,0.00016725,2]
[399599390,1766530238641,-500.0,0.00016725,2]
[399599391,1766530238651,-500.0,0.00016725,2]
[399599392,1766530238663,-500.0,0.00016729,2]
[399599393,1766530238674,-500.0,0.00016729,2]
[399599394,1766530238685,-500.0,0.00016729,2]
[399599395,1766530238695,-500.0,0.00016729,2]
[399599396,1766530238706,-1000000.0,0.0001673,2]
[399599397,1766530238717,-166.66,0.00016735,2]
[399599398,1766530238728,-361.29,0.00016737,2]
[399599399,1766530238739,-150.0,0.00016739,2]
[399599400,1766530238750,-500.0,0.00016739,2]
[399599401,1766530238761,-500.0,0.00016739,2]
[399599402,1766530238772,-500.0,0.00016739,2]
[399599403,1766530238783,-500.0,0.00016739,2]
[399599404,1766530238793,-358.26939508,0.00016739,2]
[399599405,1766530238804,-500.0,0.00016739,2]
[399599406,1766530238815,-500.0,0.00016739,2]
[399599407,1766530238826,-500.0,0.00016739,2]
[399599408,1766530238836,-500.0,0.00016739,2]
[399599409,1766530238847,-500.0,0.00016739,2]
[399599410,1766530238858,-500.0,0.00016739,2]
[399599411,1766530238869,-500.0,0.00016739,2]
[399599412,1766530238883,-500.0,0.00016739,2]
[399599413,1766530238893,-500.0,0.00016739,2]
[399599414,1766530238904,-500.0,0.00016739,2]
[399599415,1766530238914,-349.75566457,0.00016739,2]
[399599416,1766530238925,-500.0,0.00016739,2]
[399599417,1766530238935,-500.0,0.00016739,2]
[399599418,1766530238946,-400.8,0.00016739,2]
[399599419,1766530238962,-500.0,0.00016739,2]
[399599420,1766530238972,-500.0,0.00016739,2]
[399599421,1766530238983,-500.0,0.00016739,2]
[399599422,1766530238993,-500.0,0.00016739,2]
[399599423,1766530239004,-500.0,0.00016739,2]
[399599424,1766530239015,-500.0,0.00016739,2]
[399599425,1766530239027,-500.0,0.00016739,2]
[399599426,1766530239036,-500.0,0.00016739,2]
[399599427,1766530239046,-500.0,0.00016739,2]
[399599428,1766530239057,-500.0,0.00016739,2]
[399599429,1766530239067,-500.0,0.00016739,2]
[399599430,1766530239078,-500.0,0.00016739,2]
[399599431,1766530239091,-500.0,0.00016739,2]
[399599432,1766530239101,-500.0,0.00016739,2]
[399599433,1766530239112,-500.0,0.00016739,2]
[399599434,1766530239123,-500.0,0.00016739,2]
[399599435,1766530239135,-500.0,0.00016739,2]
[399599436,1766530239146,-500.0,0.00016739,2]
[399599437,1766530239157,-500.0,0.00016739,2]
[399599438,1766530239167,-500.0,0.00016739,2]
[399599439,1766530239178,-500.0,0.00016739,2]
[399599440,1766530239189,-500.0,0.00016739,2]
[399599441,1766530239200,-545.94297432,0.00016739,2]
[399599442,1766530239210,-500.0,0.00016739,2]
[399599443,1766530239220,-500.0,0.00016739,2]
[399599444,1766530239231,-500.0,0.00016739,2]
[399599445,1766530239242,-500.0,0.00016739,2]
[399599446,1766530239252,-500.0,0.00016739,2]
[399599447,1766530239263,-500.0,0.00016739,2]
[399599448,1766530239274,-500.0,0.00016739,2]
[399599449,1766530239284,-150.0,0.00016744,2]
[399599450,1766530239294,-150.0,0.00016744,2]
[399599451,1766530239304,-500.0,0.00016752,2]
[399599452,1766530239314,-500.0,0.00016752,2]
[399599453,1766530239327,-150.0,0.00016752,2]
[399599454,1766530239338,-500.0,0.00016752,2]
[399599455,1766530239349,-500.0,0.00016752,2]
[399599456,1766530239359,-208.32,0.00016758,2]
[399599457,1766530239371,-366.61967458,0.00016761,2]
[399599458,1766530239382,-150.0,0.00016765,2]
[399599459,1766530239392,-150.0,0.00016769,2]
[399599460,1766530239403,-150.0,0.00016774,2]
[399599461,1766530239413,-150.0,0.00016774,2]
[399599462,1766530239424,-150.0,0.00016774,2]
[399599463,1766530239435,-150.0,0.00016774,2]
[399599464,1766530239445,-500.0,0.0001678,2]
[399599465,1766530239456,-500.0,0.0001678,2]
[399599466,1766530239466,-150.0,0.0001678,2]
[399599467,1766530239477,-500.0,0.0001678,2]
[399599468,1766530239487,-500.0,0.0001678,2]
[399599469,1766530239499,-1000.0,0.00016785,2]
[399599470,1766530239510,-150.0,0.00016804,2]
[399599471,1766530239520,-500.0,0.00016807,2]
[399599472,1766530239530,-500.0,0.00016807,2]
[399599473,1766530239541,-150.0,0.00016807,2]
[399599474,1766530239551,-500.0,0.00016807,2]
[399599475,1766530239562,-500.0,0.00016807,2]
[399599476,1766530239573,-541.44106177,0.00016808,2]
[399599477,1766530239583,-150.0,0.00016809,2]
[399599478,1766530239593,-150.0,0.00016812,2]
[399599479,1766530239604,-500.0,0.00016827,2]
[399599480,1766530239614,-27289.36240859,0.0001683,2]
[399599481,1766530239625,-366.61967458,0.00016831,2]
[399599482,1766530239634,-218.33,0.00016831,2]
[399599483,1766530239644,-500.0,0.00016835,2]
[399599484,1766530239654,-500.0,0.00016835,2]
[399599485,1766530239665,-150.0,0.00016835,2]
[399599486,1766530239676,-500.0,0.00016835,2]
[399599487,1766530239686,-150.0,0.00016839,2]
[399599488,1766530239697,-150.0,0.00016845,2]
[399599489,1766530239707,-150.0,0.00016845,2]
[399599490,1766530239717,-288.36983735,0.00016855,3]
[399599491,1766530239729,-250.0,0.00016855,2]
[399599492,1766530239739,-150.0,0.00016856,2]
[399599493,1766530239749,-200.0,0.0001686,2]
[399599494,1766530239759,-250.0,0.0001686,2]
[399599495,1766530239769,-500.0,0.00016862,2]
[399599496,1766530239779,-500.0,0.00016862,2]
[399599497,1766530239789,-250.0,0.00016862,2]
[399599498,1766530239799,-500.0,0.00016862,2]
[399599499,1766530239809,-150.0,0.00016865,2]
[399599500,1766530239819,-150.0,0.0001688,2]
[399599501,1766530239829,-500.0,0.00016889,2]
[399599502,1766530239840,-500.0,0.00016889,2]
[399599503,1766530239850,-500.0,0.00016889,2]
[399599504,1766530239860,-500.0,0.00016899,2]
[399599505,1766530239870,-150.0,0.00016899,2]
[399599506,1766530239891,-5669.1016,0.000169,2]
[399599507,1766530239905,-1000.0,0.000169,2]
[399599508,1766530239916,-881.45092359,0.000169,2]
[399599509,1766530239927,-366.61967458,0.000169,2]
[399599510,1766530239938,-10000.0,0.000169,2]
[399599511,1766530239949,-184.99945595,0.000169,2]
[399599512,1766530239959,-151.78709846,0.000169,2]
[399599513,1766530239970,-358.77956305,0.000169,2]
[399599515,1766530239981,-500.0,0.000169,2]
[399599516,1766530239992,-500.0,0.000169,2]
[399599517,1766530240003,-500.0,0.000169,2]
[399599518,1766530240014,-500.0,0.000169,2]
[399599519,1766530240024,-500.0,0.000169,2]
[399599520,1766530240036,-500.0,0.000169,2]
[399599521,1766530240046,-500.0,0.000169,2]
[399599522,1766530240057,-500.0,0.000169,2]
[399599523,1766530240068,-500.0,0.000169,2]
[399599524,1766530240080,-500.0,0.000169,2]
[399599525,1766530240093,-500.0,0.000169,2]
[399599526,1766530240103,-500.0,0.000169,2]
[399599527,1766530240113,-500.0,0.000169,2]
[399599528,1766530240125,-500.0,0.000169,2]
[399599529,1766530240135,-500.0,0.000169,2]
[399599530,1766530240146,-500.0,0.000169,2]
[399599531,1766530240157,-500.0,0.000169,2]
[399599532,1766530240167,-500.0,0.000169,2]
[399599533,1766530240177,-500.0,0.000169,2]
[399599534,1766530240187,-500.0,0.000169,2]
[399599535,1766530240197,-500.0,0.000169,2]
[399599536,1766530240207,-500.0,0.000169,2]
[399599537,1766530240217,-500.0,0.000169,2]
[399599538,1766530240228,-500.0,0.000169,2]
[399599539,1766530240238,-500.0,0.000169,2]
[399599540,1766530240254,-420.10008661,0.000169,2]
[399599541,1766530240265,-150.0,0.00016912,2]
[399599542,1766530240276,-150.0,0.00016916,2]
[399599543,1766530240287,-150.0,0.00016916,2]
[399599544,1766530240297,-568.69580303,0.00016917,2]
[399599545,1766530240308,-500.0,0.00016917,2]
[399599546,1766530240318,-500.0,0.00016917,2]
[399599547,1766530240329,-150.0,0.00016926,2]
[399599548,1766530240340,-150.0,0.00016943,2]
[399599549,1766530240350,-500.0,0.00016944,2]
[399599550,1766530240360,-500.0,0.00016944,2]
[399599551,1766530240371,-150.0,0.00016951,2]
[399599552,1766530240382,-500.0,0.00016972,2]
[399599553,1766530240394,-500.0,0.00016972,2]
[399599554,1766530240405,-150.0,0.00016973,2]
[399599556,1766530240859,-158.48329942,0.00016986,2]
[399599557,1766530240871,-155.64705311,0.00016986,2]
[399599558,1766530240882,-160.33063992,0.00016986,2]
[399599559,1766530240894,-164.52110484,0.00016986,2]
[399599560,1766530240905,-151.72084113,0.00016986,2]
[399599561,1766530240917,-157.7543509,0.00016986,2]
[399599562,1766530240927,-156.76422926,0.00016986,2]
[399599563,1766530240938,-150.82546103,0.00016986,2]
[399599564,1766530240948,-152.70737667,0.00016986,2]
[399599565,1766530240959,-152.94375339,0.00016986,2]
[399599566,1766530240970,-151.0,0.00016997,2]
[399599567,1766530240980,-151.0,0.00016997,2]
[399599568,1766530240991,-151.0,0.00016997,2]
[399599569,1766530241002,-151.0,0.00016997,2]
[399599570,1766530241012,-500.0,0.00016999,2]
[399599571,1766530241022,-500.0,0.00016999,2]
[399599572,1766530241033,-150.0,0.00016999,2]
[399599573,1766530241043,-150.0,0.00016999,2]
[399599574,1766530241054,-500.0,0.00016999,2]
[399599575,1766530241065,-500.0,0.00016999,2]
[399599576,1766530241075,-500.0,0.00016999,2]
[399599577,1766530241089,-500.0,0.00016999,2]
[399599578,1766530241100,-500.0,0.00016999,2]
[399599579,1766530241110,-500.0,0.00016999,2]
[399599580,1766530241121,-500.0,0.00016999,2]
[399599581,1766530241131,-405029.8574703,0.00017,2]
[399599582,1766530241744,-1663.68431195,0.00017,2]
[399599583,1766530241757,-873.8,0.00017,2]
[399599584,1766530241775,-510.0107198,0.00017,2]
[399599585,1766530241787,-318.43221078,0.00017,2]
[399599586,1766530241808,-328.88666808,0.00017,2]
[399599587,1766530241900,-151.0,0.00015883,2]
[399599588,1766530241910,-4541665.43771941,0.00017,2]
[399599605,1766530243366,-209.08747148,0.00016635,2]
[399599606,1766530243378,-7741.57134547,0.00017,2]
[399599607,1766530243563,-316.16713008,0.00016438,2]
[399599608,1766530243576,-1343.6405701,0.00016438,2]
[399599617,1766530246034,-482.95785841,0.00016438,2]
[399599618,1766530246106,-2757.65444141,0.00016438,2]
[399599619,1766530246118,-25357.41194518,0.00017,2]
[399599620,1766530246131,-1362.46274873,0.00017,2]
[399599621,1766530246281,-429552.29942653,0.00017,2]
[399599622,1766530246292,-287.32748031,0.00017,2]
[399599623,1766530246303,-151.0,0.00017,2]
[399599624,1766530246314,-2000.0,0.00017,2]
[399599625,1766530246325,-145800.44828121,0.00017,2]
[399599626,1766530246338,-311.95472696,0.00017,2]
[399599627,1766530246352,-621.06999944,0.00017,2]
[399599633,1766530353579,240.89080885,0.000176,30]
[399599634,1766530639629,500.0,0.000176,30]
[399599638,1766530706274,433.61316157,0.000153,2]
[399599654,1766530940914,500.0,0.000176,30]
[399599749,1766531304265,659.85,0.00013699,2]
[399599780,1766531432183,-162.97209623,0.00015845,2]
[399599782,1766531432194,-187.53372631,0.00015891,3]
[399599787,1766531432231,-811.46627369,0.00015891,3]
[399599789,1766531432242,-80.39755631,0.00015896,2]
[399599793,1766531432275,-169.60244369,0.00015896,2]
[399599794,1766531432285,-151.0,0.00015897,2]
[399599795,1766531432295,-1200.0,0.00015899,2]
[399599797,1766531432305,-300.0,0.00015899,2]
[399599799,1766531432321,-414.0,0.000159,2]
[399599801,1766531432331,-3647.36610967,0.000159,2]
[399599803,1766531432344,-7147.3220065,0.000159,2]
[399599806,1766531432356,-630.31,0.000159,2]
[399599827,1766531438204,-963.50904473,0.00015899,2]
[399599828,1766531438215,-8180.03394516,0.000159,2]
[399599829,1766531438227,-896.94,0.000159,2]
[399599830,1766531438370,-7964.95983375,0.000159,2]
[399599831,1766531438383,-22877.13477734,0.000159,2]
[399599832,1766531438400,-551.09530478,0.000159,2]
[399599833,1766531438414,-8625.78236616,0.000159,2]
[399599834,1766531438433,-398.96585399,0.000159,2]
[399599835,1766531438446,-939080.08980265,0.000159,2]
[399599836,1766531438456,-300.0,0.00015999,2]
[399599837,1766531438468,-80161.521,0.00016,2]
[399599838,1766531438478,-150.0,0.0001604,2]
[399599839,1766531438491,-166.87,0.00016072,2]
[399599840,1766531438502,-3205.9386,0.00016076,2]
[399599841,1766531438512,-500.0,0.00016076,2]
[399599842,1766531438523,-500.0,0.00016076,2]
[399599843,1766531438534,-500.0,0.00016076,2]
[399599844,1766531438544,-500.0,0.00016076,2]
[399599845,1766531438555,-500.0,0.00016076,2]
[399599846,1766531438566,-500.0,0.00016076,2]
[399599847,1766531438576,-500.0,0.00016076,2]
[399599849,1766531438587,-500.0,0.00016076,2]
[399599850,1766531438597,-500.0,0.00016076,2]
[399599853,1766531438607,-500.0,0.00016076,2]
[399599856,1766531438618,-500.0,0.00016076,2]
[399599859,1766531438628,-500.0,0.00016076,2]
[399599861,1766531438639,-500.0,0.00016076,2]
[399599863,1766531438649,-500.0,0.00016076,2]
[399599865,1766531438660,-500.0,0.00016076,2]
[399599867,1766531438671,-500.0,0.00016076,2]
[399599869,1766531438681,-500.0,0.00016076,2]
[399599871,1766531438693,-500.0,0.00016076,2]
[399599873,1766531438703,-500.0,0.00016076,2]
[399599875,1766531438714,-500.0,0.00016076,2]
[399599877,1766531438724,-500.0,0.00016076,2]
[399599879,1766531438735,-500.0,0.00016076,2]
[399599881,1766531438746,-500.0,0.00016076,2]
[399599883,1766531438756,-500.0,0.00016076,2]
[399599885,1766531438767,-500.0,0.00016076,2]
[399599887,1766531438777,-420.10008661,0.00016076,2]
[399599889,1766531438788,-216.57,0.00016076,2]
[399599890,1766531438798,-643.57607757,0.0001616,2]
[399599891,1766531438808,-500.0,0.00016164,2]
[399599892,1766531438819,-150.0,0.00016173,2]
[399599893,1766531438829,-500.0,0.00016191,2]
[399599894,1766531438839,-500.0,0.00016219,2]
[399599895,1766531438849,-200.62726993,0.0001625,2]
[399599896,1766531438859,-33501.2974,0.0001626,2]
[399599897,1766531438870,-1000.0,0.0001626,2]
[399599898,1766531438880,-216.57,0.0001635,2]
[399599899,1766531438890,-162.97209621,0.00016372,2]
[399599900,1766531438901,-500.0,0.00016438,2]
[399599901,1766531438911,-500.0,0.00016438,2]
[399599902,1766531438921,-500.0,0.00016438,2]
[399599903,1766531438931,-500.0,0.00016438,2]
[399599904,1766531438942,-500.0,0.00016438,2]
[399599905,1766531438952,-800.0,0.00016438,2]
[399599906,1766531438963,-216.57,0.00016624,2]
[399599907,1766531438973,-250.0,0.00016661,2]
[399599908,1766531438984,-207.0,0.00016692,2]
[399599909,1766531438994,-500.0,0.00016712,2]
[399599910,1766531439005,-500.0,0.00016726,2]
[399599911,1766531439016,-150.0,0.00016726,2]
[399599912,1766531439026,-500.0,0.00016726,2]
[399599913,1766531439036,-500.0,0.00016726,2]
[399599914,1766531439046,-500.0,0.00016726,2]
[399599915,1766531439056,-500.0,0.00016726,2]
[399599916,1766531439066,-500.0,0.00016729,2]
[399599917,1766531439077,-500.0,0.00016729,2]
[399599918,1766531439087,-500.0,0.00016729,2]
[399599919,1766531439098,-500.0,0.00016729,2]
[399599920,1766531439109,-198.94914877,0.00016751,2]
[399599921,1766531439120,-500.0,0.00016753,2]
[399599922,1766531439131,-150.0,0.00016753,2]
[399599923,1766531439142,-500.0,0.00016753,2]
[399599924,1766531439160,-500.0,0.00016753,2]
[399599925,1766531439173,-500.0,0.00016753,2]
[399599926,1766531439187,-500.0,0.00016753,2]
[399599927,1766531439199,-500.0,0.00016781,2]
[399599928,1766531439209,-150.0,0.00016781,2]
[399599929,1766531439219,-500.0,0.00016781,2]
[399599930,1766531439229,-500.0,0.00016781,2]
[399599931,1766531439239,-500.0,0.00016781,2]
[399599932,1766531439249,-500.0,0.00016781,2]
[399599933,1766531439259,-500.0,0.00016808,2]
[399599934,1766531439269,-150.0,0.00016808,2]
[399599935,1766531439279,-500.0,0.00016808,2]
[399599936,1766531439289,-500.0,0.00016808,2]
[399599937,1766531439299,-500.0,0.00016808,2]
[399599938,1766531439309,-500.0,0.00016808,2]
[399599939,1766531439319,-500.0,0.00016836,2]
[399599940,1766531439329,-150.0,0.00016836,2]